bitfinex/quotes_SOLUSD_20220104
["timestamp","ask_amount","ask_price","bid_price","bid_amount"]
[1641290669449,2.1525216,168.03,167.95,0.65578077]
[1641290669848,2.1525216,168.03,167.95,0.15578077]
[1641290670450,1.3571,168.02,167.95,0.15578077]
[1641290670852,1.8571,168.02,167.95,0.15578077]
[1641290671654,10.3971,168.02,167.95,0.15578077]
[1641290671855,10.6571,168.02,167.95,0.15578077]
[1641290672054,22.7695,168.01,167.95,0.15578077]
[1641290672255,8.54,168.0,167.95,0.15578077]
[1641290672455,9.04,168.0,167.95,0.15578077]
[1641290672655,23.81490459,167.99,167.95,0.15578077]
[1641290672856,24.31490459,167.99,167.95,0.15578077]
[1641290673057,1.2979,167.98,167.95,0.15578077]
[1641290685173,24.8759,167.99,167.96,3.0320074]
[1641290685371,110.60595687,168.0,167.96,3.0320074]
[1641290685570,110.60595687,168.0,167.96,2.6729804]
[1641290685771,102.06595687,168.0,167.96,0.26]
[1641290686069,102.06595687,168.0,167.95,0.15578077]
[1641290687371,1.3437,168.01,167.95,0.15578077]
[1641290691298,1.3437,168.01,167.95,25.13628077]
[1641290691500,1.3437,168.01,167.95,25.89628077]
[1641290694508,1.6525216,168.02,167.95,25.89628077]
[1641290694808,1.6525216,168.02,167.95,34.43628077]
[1641290695206,1.6525216,168.03,167.95,34.43628077]
[1641290695806,1.6525216,168.05,167.95,34.43628077]
[1641290696006,1.6525216,168.05,167.95,35.77868077]
[1641290701014,24.42150308,168.07,167.95,35.77868077]
[1641290704715,1.3003,168.07,167.95,35.77868077]
[1641290705315,1.3003,168.07,167.95,35.51868077]
[1641290706716,1.3003,168.07,167.95,35.77868077]
[1641290708920,78.9144,168.08,167.95,35.77868077]
[1641290709619,1.2936,168.07,167.95,35.77868077]
[1641290710421,2.9461216,168.07,167.95,35.77868077]
[1641290710822,2.9461216,168.07,167.95,35.51868077]
[1641290711422,26.7906216,168.07,167.95,35.51868077]
[1641290711622,25.1381,168.07,167.95,35.51868077]
[1641290712222,25.1381,168.07,167.95,35.77868077]
[1641290717331,25.6381,168.07,167.95,35.77868077]
[1641290718129,27.2906216,168.07,167.95,35.77868077]
[1641290718732,27.2906216,168.07,167.95,34.43628077]
[1641290718929,25.6381,168.07,167.95,34.17628077]
[1641290719130,25.8981,168.07,167.95,34.17628077]
[1641290719530,20.76649918,168.05,167.95,34.17628077]
[1641290719731,23.0263,168.04,167.95,34.17628077]
[1641290720333,1.3681,168.03,167.95,34.17628077]
[1641290720532,1.3681,168.03,167.95,34.43628077]
[1641290721734,1.3681,168.03,167.95,34.17628077]
[1641290721934,1.3681,168.03,167.95,0.65578077]
[1641290722133,1.8681,168.03,167.95,0.65578077]
[1641290722334,1.8681,168.03,167.95,0.15578077]
[1641290722733,74.9375,168.03,167.95,0.15578077]
[1641290723334,23.3225,168.02,167.95,0.15578077]
[1641290723539,26.93813471,168.01,167.95,0.15578077]
[1641290723939,27.43813471,168.01,167.95,0.15578077]
[1641290724335,1.2991,168.0,167.95,0.15578077]
[1641290724761,1.7991,168.0,167.95,0.15578077]
[1641290727640,6.3771,168.0,167.95,0.15578077]
[1641290727943,6.6371,168.0,167.95,0.15578077]
[1641290728141,6.6371,168.0,167.92,0.02]
[1641290728142,31.357,167.99,167.92,0.02]
[1641290728341,76.0399,167.98,167.92,0.02]
[1641290728547,20.76649918,167.97,167.92,0.02]
[1641290728740,21.26649918,167.97,167.92,0.02]
[1641290728943,23.5482,167.96,167.92,0.02]
[1641290729344,24.3082,167.96,167.84,8.54]
[1641290729542,1.3422,167.95,167.89,0.02]
[1641290729944,2.1022,167.95,167.89,0.02]
[1641290731146,8.54,167.94,167.89,0.02]
[1641290731346,100.3828,167.93,167.83,0.5]
[1641290731547,100.6428,167.93,167.83,0.5]
[1641290731745,26.93813471,167.92,167.83,0.5]
[1641290732044,26.93813471,167.92,167.8,1.6985894]
[1641290732045,42.71813471,167.92,167.8,1.6985894]
[1641290732271,42.71813471,167.92,167.8,1.1985894]
[1641290732445,42.71813471,167.92,167.8,1.6985894]
[1641290732845,1.6525216,167.91,167.8,1.6985894]
[1641290733047,8.54,167.9,167.8,1.6985894]
[1641290733247,9.04,167.9,167.8,1.1985894]
[1641290733446,9.3,167.9,167.77,3.52008937]
[1641290733648,9.3,167.9,167.77,4.02008937]
[1641290733848,9.3,167.9,167.77,5.44678305]
[1641290734046,20.76649918,167.88,167.77,5.44678305]
[1641290734449,20.76649918,167.88,167.77,5.70678305]
[1641290734648,20.76649918,167.88,167.78,24.9056]
[1641290734848,20.76649918,167.88,167.78,25.4056]
[1641290735049,20.76649918,167.88,167.78,25.6656]
[1641290737549,1.3567,167.91,167.78,27.09229368]
[1641290738149,1.3567,167.91,167.79,8.54]
[1641290738350,1.3567,167.91,167.8,24.9226]
[1641290738553,1.3567,167.91,167.81,8.54]
[1641290738752,1.3567,167.91,167.83,2.53284201]
[1641290738952,1.3567,167.91,167.83,3.29284201]
[1641290739152,100.3828,167.93,167.83,3.29284201]
[1641290739553,101.6371,167.93,167.83,3.29284201]
[1641290741882,101.6371,167.93,167.84,26.39187887]
[1641290742081,101.6371,167.93,167.84,26.65187887]
[1641290742281,101.6371,167.93,167.84,50.68327887]
[1641290742882,101.6371,167.93,167.84,24.2914]
[1641290744884,101.6371,167.93,167.84,0.76]
[1641290745082,101.6371,167.93,167.84,0.5]
[1641290745283,101.6371,167.93,167.83,3.03284201]
[1641290746583,101.6371,167.93,167.83,3.29284201]
[1641290748785,77.4743,167.93,167.84,31.37015762]
[1641290748986,1.6525216,167.94,167.84,31.63015762]
[1641290749190,1.6525216,167.95,167.85,26.00399368]
[1641290749387,1.6525216,167.95,167.85,25.0773]
[1641290749592,1.6525216,167.95,167.85,25.3373]
[1641290749990,1.3265,167.94,167.85,25.0773]
[1641290750191,1.3265,167.94,167.85,0.5]
[1641290750389,1.3265,167.94,167.83,3.03284201]
[1641290751191,2.9790216,167.94,167.83,3.03284201]
[1641290751392,2.9790216,167.94,167.83,3.29284201]
[1641290751690,25.3728216,167.95,167.84,1.42669368]
[1641290751890,25.3728216,167.95,167.84,1.92669368]
[1641290752091,25.3728216,167.95,167.84,0.76]
[1641290752300,1.2769,167.94,167.84,2.0678]
[1641290752491,1.2769,167.94,167.84,1.5678]
[1641290752690,1.2769,167.94,167.84,2.0678]
[1641290758896,1.7769,167.94,167.84,2.0678]
[1641290759494,1.2769,167.94,167.84,2.0678]
[1641290764199,0.30517283,167.86,167.78,1.44669368]
[1641290764401,8.54,167.9,167.78,0.02]
[1641290764802,105.41919368,167.89,167.78,0.02]
[1641290765002,8.54,167.88,167.78,0.02]
[1641290765205,9.96669368,167.88,167.74,31.7598809]
[1641290765405,1.6525216,167.87,167.74,31.7598809]
[1641290765702,1.6525216,167.87,167.75,22.9426]
[1641290766503,31.12700307,167.88,167.75,23.2026]
[1641290766904,1.2798,167.87,167.75,23.2026]
[1641290768607,1.2798,167.87,167.75,22.9426]
[1641290770110,1.2798,167.87,167.75,23.2026]
[1641290770510,1.2798,167.87,167.75,0.26]
[1641290771009,2.9323216,167.87,167.74,40.5598809]
[1641290771208,3.4323216,167.87,167.74,40.5598809]
[1641290772010,3.4323216,167.87,167.74,8.54]
[1641290772210,5.11901528,167.87,167.74,8.54]
[1641290772411,13.65901528,167.87,167.74,8.54]
[1641290773211,1.6525216,167.84,167.74,8.54]
[1641290773412,2.1525216,167.84,167.72,2.79022698]
[1641290773912,2.1525216,167.84,167.72,3.05022698]
[1641290774113,1.3472,167.83,167.72,3.05022698]
[1641290774411,1.8472,167.83,167.72,3.05022698]
[1641290774811,1.3472,167.83,167.72,3.05022698]
[1641290775915,79.9303,167.84,167.72,11.59022698]
[1641290780125,1.3608,167.87,167.72,13.01692066]
[1641290780326,1.3608,167.87,167.73,24.4949]
[1641290780526,1.3608,167.87,167.74,8.54]
[1641290780725,1.3608,167.87,167.76,26.51879358]
[1641290780930,1.3608,167.87,167.76,35.05879358]
[1641290781140,1.3608,167.87,167.76,35.31879358]
[1641290783947,1.3608,167.87,167.78,2.58980472]
[1641290784349,1.3608,167.87,167.78,2.84980472]
[1641290790958,1.3608,167.87,167.78,2.58980472]
[1641290791157,1.8608,167.87,167.78,2.58980472]
[1641290791355,10.6608,167.87,167.78,2.58980472]
[1641290791556,12.3133216,167.87,167.73,0.02]
[1641290791856,102.518,167.86,167.73,25.6373]
[1641290792059,1.6525216,167.85,167.73,56.55211793]
[1641290792255,1.6525216,167.85,167.74,8.54]
[1641290792456,1.6525216,167.85,167.75,23.0872]
[1641290792658,102.518,167.86,167.76,2.51491572]
[1641290793057,103.018,167.86,167.76,2.77491572]
[1641290793457,1.2488,167.85,167.76,2.77491572]
[1641290794559,1.6525216,167.87,167.76,2.77491572]
[1641290794560,1.6525216,167.87,167.77,8.54]
[1641290794760,1.6525216,167.87,167.77,38.5672]
[1641290794962,1.6525216,167.87,167.77,38.8272]
[1641290795961,1.6525216,167.87,167.77,40.1324]
[1641290796167,2.6491,167.89,167.77,40.1324]
[1641290797767,4.3016216,167.89,167.77,38.5672]
[1641290797964,4.5616216,167.89,167.77,6.152]
[1641290798171,5.0616216,167.89,167.76,2.51491572]
[1641290798365,1.6525216,167.87,167.76,2.51491572]
[1641290798564,23.11622925,167.86,167.76,2.51491572]
[1641290799166,23.11622925,167.86,167.76,2.77491572]
[1641290799466,1.3435,167.85,167.76,2.77491572]
[1641290801465,1.3435,167.85,167.76,2.51491572]
[1641290802975,1.3435,167.85,167.76,2.77491572]
[1641290806678,1.6525216,167.87,167.76,2.77491572]
[1641290806882,1.6525216,167.87,167.77,32.0456]
[1641290807181,1.6525216,167.87,167.77,32.3056]
[1641290807792,1.6525216,167.9,167.77,32.3056]
[1641290808599,1.6525216,167.9,167.77,33.6199]
[1641290809101,1.3511,167.89,167.77,33.6199]
[1641290809501,1.6525216,167.9,167.77,33.6199]
[1641290810703,154.56985143,167.92,167.77,33.6199]
[1641290812402,1.6525216,167.91,167.77,33.6199]
[1641290816006,47.4495,167.92,167.77,33.6199]
[1641290816406,23.261,167.92,167.77,33.6199]
[1641290817405,24.9135216,167.92,167.77,33.6199]
[1641290818009,23.261,167.92,167.77,33.6199]
[1641290819010,24.9135216,167.92,167.77,33.6199]
[1641290821815,1.3366,167.91,167.77,33.6199]
[1641290823316,1.6525216,167.92,167.77,33.6199]
[1641290823916,1.6525216,167.91,167.77,33.6199]
[1641290824116,5.0244289,167.77,167.75,17.6802214]
[1641290824318,5.0244289,167.77,167.69,0.02]
[1641290824716,5.0244289,167.77,167.7,8.54]
[1641290825123,5.0244289,167.77,167.71,29.77677724]
[1641290825719,5.0244289,167.77,167.72,8.54]
[1641290826950,5.0244289,167.77,167.72,8.8]
[1641290831155,5.0244289,167.77,167.72,8.54]
[1641290832455,5.0244289,167.77,167.72,8.8]
[1641290833755,5.0244289,167.77,167.72,8.54]
[1641290835560,5.0244289,167.77,167.72,8.8]
[1641290836760,5.0244289,167.77,167.72,0.26]
[1641290836960,5.0244289,167.77,167.71,2.80447065]
[1641290837764,5.0244289,167.77,167.69,8.54]
[1641290838764,5.0244289,167.77,167.7,3.01086085]
[1641290838968,5.0244289,167.77,167.7,3.27086085]
[1641290840065,5.0244289,167.77,167.7,0.26]
[1641290840268,5.0244289,167.77,167.68,1.74711]
[1641290844669,5.0244289,167.77,167.68,26.69231]
[1641290846472,0.30324902,167.75,167.63,1.3991]
[1641290846673,0.30324902,167.75,167.63,0.02]
[1641290846872,1.2775,167.74,167.63,0.02]
[1641290847073,1.2775,167.74,167.63,8.56]
[1641290847273,1.2775,167.74,167.63,8.54]
[1641290847471,1.2775,167.74,167.64,30.01684212]
[1641290848475,1.2775,167.74,167.64,30.27684212]
[1641290849076,1.2775,167.74,167.64,30.01684212]
[1641290850877,1.2775,167.74,167.65,23.6198]
[1641290851280,1.2775,167.74,167.65,23.8798]
[1641290851880,1.2775,167.74,167.65,0.26]
[1641290852181,1.2775,167.74,167.64,30.27684212]
[1641290853409,1.2775,167.74,167.65,22.7453]
[1641290853608,1.2775,167.74,167.66,8.54]
[1641290854009,1.2775,167.74,167.66,8.8]
[1641290854610,1.2775,167.74,167.66,8.54]
[1641290856014,75.774,167.76,167.66,8.8]
[1641290858618,1.345,167.75,167.66,8.8]
[1641290864629,1.345,167.75,167.66,8.54]
[1641290865028,1.345,167.75,167.6,0.02]
[1641290865029,10.80433345,167.63,167.6,0.02]
[1641290866127,10.80433345,167.63,167.61,6.06420737]
[1641290866329,10.30433345,167.63,167.61,6.06420737]
[1641290867730,10.30433345,167.63,167.61,6.32420737]
[1641290872466,10.30433345,167.63,167.61,6.06420737]
[1641290873765,10.30433345,167.63,167.62,3.03219997]
[1641290873966,10.30433345,167.63,167.61,3.0320074]
[1641290874165,10.30433345,167.63,167.59,23.92486842]
[1641290874565,10.30433345,167.63,167.59,0.02]
[1641290875368,10.30433345,167.63,167.58,1.4825811]
[1641290875565,10.30433345,167.63,167.58,27.25041925]
[1641290876367,10.30433345,167.63,167.56,0.02]
[1641290877368,10.30433345,167.63,167.55,3.01712877]
[1641290878572,10.30433345,167.63,167.55,3.27712877]
[1641290878968,10.30433345,167.63,167.55,3.01712877]
[1641290880571,10.30433345,167.63,167.55,3.27712877]
[1641290889882,10.30433345,167.63,167.56,8.54]
[1641290890081,10.30433345,167.63,167.56,8.8]
[1641290890482,10.30433345,167.63,167.57,24.07812918]
[1641290890682,10.30433345,167.63,167.58,2.97866564]
[1641290891083,10.30433345,167.63,167.58,3.23866564]
[1641290897718,10.30433345,167.63,167.58,2.97866564]
[1641290898920,10.30433345,167.63,167.57,24.07812918]
[1641290899126,10.30433345,167.63,167.58,0.26]
[1641290899320,10.30433345,167.63,167.57,24.33812918]
[1641290906331,10.30433345,167.63,167.57,0.26]
[1641290906530,10.30433345,167.63,167.56,1.6268]
[1641290906731,10.30433345,167.63,167.56,1.3668]
[1641290907530,10.30433345,167.63,167.54,36.61477111]
[1641290909033,10.30433345,167.63,167.54,36.87477111]
[1641290919341,10.30433345,167.63,167.5,7.42575726]
[1641290919542,0.30293156,167.58,167.5,1.2007166]
[1641290919943,9.04,167.61,167.5,1.2007166]
[1641290920144,9.3,167.61,167.5,1.2007166]
[1641290920443,1.6525216,167.58,167.5,1.2007166]
[1641290920643,7.2645216,167.58,167.5,1.2007166]
[1641290920844,7.7645216,167.58,167.5,1.2007166]
[1641290921042,7.2645216,167.58,167.5,1.2007166]
[1641290921845,1.6525216,167.58,167.5,1.2007166]
[1641290922046,10.1925216,167.59,167.5,1.2007166]
[1641290922447,10.1925216,167.59,167.51,29.37262758]
[1641290923574,10.1925216,167.59,167.51,29.63262758]
[1641290924351,9.04,167.59,167.51,29.63262758]
[1641290924962,9.04,167.59,167.51,0.28]
[1641290925157,9.04,167.59,167.51,0.02]
[1641290925454,10.6925216,167.59,167.51,0.02]
[1641290926055,10.1925216,167.59,167.51,0.02]
[1641290926956,8.54,167.59,167.51,0.02]
[1641290929658,9.04,167.59,167.51,0.02]
[1641290931679,9.3,167.59,167.51,0.02]
[1641290931882,9.04,167.59,167.51,0.02]
[1641290932087,9.3,167.59,167.51,0.02]
[1641290932682,9.04,167.59,167.51,0.02]
[1641290933281,9.3,167.59,167.51,0.02]
[1641290933682,10.9525216,167.59,167.51,0.02]
[1641290933883,10.6925216,167.59,167.51,0.02]
[1641290934286,10.9525216,167.59,167.51,0.02]
[1641290935390,10.6925216,167.59,167.51,0.02]
[1641290936891,9.04,167.59,167.51,0.02]
[1641290937487,15.6,167.59,167.51,0.02]
[1641290937886,15.34,167.59,167.51,0.02]
[1641290938089,15.6,167.59,167.51,0.02]
[1641290938790,15.34,167.59,167.51,0.02]
[1641290939292,9.04,167.59,167.51,0.02]
[1641290941090,9.3,167.59,167.51,0.02]
[1641290947798,9.04,167.59,167.51,0.02]
[1641290949902,9.3,167.59,167.51,0.02]
[1641290950100,9.04,167.59,167.51,0.02]
[1641290951506,8.54,167.59,167.51,0.02]
[1641290951706,135.0356699,167.6,167.51,0.02]
[1641290952308,79.7448,167.6,167.51,0.02]
[1641290952509,79.7448,167.6,167.51,8.56]
[1641290952709,1.6525216,167.61,167.52,2.66990911]
[1641290952908,1.6525216,167.61,167.52,27.26510911]
[1641290953107,20.70323345,167.63,167.52,27.52510911]
[1641290953108,1.6525216,167.62,167.52,27.52510911]
[1641290953309,26.78041326,167.62,167.52,59.26112073]
[1641290953510,25.12789166,167.62,167.52,59.26112073]
[1641290953908,11.64783345,167.63,167.52,59.26112073]
[1641290954110,10.30433345,167.63,167.52,59.26112073]
[1641290954311,10.30433345,167.63,167.53,8.54]
[1641290954513,10.30433345,167.63,167.53,8.8]
[1641290957217,10.30433345,167.63,167.53,10.22669368]
[1641290958639,10.30433345,167.63,167.52,59.00112073]
[1641290958640,10.30433345,167.63,167.52,3.99350911]
[1641290959437,10.30433345,167.63,167.53,31.87455852]
[1641290960038,10.30433345,167.63,167.53,32.13455852]
[1641290961243,11.95685505,167.63,167.53,32.13455852]
[1641290963146,11.95685505,167.63,167.53,31.87455852]
[1641290964447,11.95685505,167.63,167.53,32.13455852]
[1641290965048,12.45685505,167.63,167.53,32.13455852]
[1641290965248,11.95685505,167.63,167.53,32.13455852]
[1641290965649,12.45685505,167.63,167.53,31.87455852]
[1641290965850,11.95685505,167.63,167.53,31.87455852]
[1641290967053,11.95685505,167.63,167.53,32.13455852]
[1641290967452,1.6525216,167.62,167.53,32.13455852]
[1641290968854,11.95685505,167.63,167.53,32.13455852]
[1641290969551,10.30433345,167.63,167.53,32.13455852]
[1641290969954,10.30433345,167.63,167.55,3.02913246]
[1641290970352,10.30433345,167.63,167.55,3.28913246]
[1641290970955,10.30433345,167.63,167.55,0.26]
[1641290971361,10.30433345,167.63,167.54,24.5761]
[1641290971557,11.95685505,167.63,167.54,24.5761]
[1641290971957,11.95685505,167.63,167.55,2.30494708]
[1641290972358,11.95685505,167.63,167.55,2.56494708]
[1641290973559,10.30433345,167.63,167.55,2.56494708]
[1641290974357,10.30433345,167.63,167.55,0.26]
[1641290974558,10.30433345,167.63,167.54,24.5761]
[1641290975361,10.30433345,167.63,167.54,27.48822888]
[1641290976383,10.30433345,167.63,167.51,0.02]
[1641290976384,8.54,167.62,167.51,0.02]
[1641290976584,8.8,167.62,167.51,0.02]
[1641290976885,6.8192103,167.6,167.51,0.02]
[1641290977085,8.54,167.59,167.51,0.02]
[1641290977383,30.84552752,167.58,167.51,0.02]
[1641290977583,39.38552752,167.58,167.51,0.02]
[1641290977783,1.6525216,167.57,167.51,0.02]
[1641290979185,3.0078216,167.57,167.51,0.02]
[1641290979584,1.3553,167.57,167.51,0.02]
[1641290982988,1.8553,167.57,167.51,0.02]
[1641290985893,1.3553,167.57,167.51,0.02]
[1641290986094,0.31579644,167.53,167.51,0.02]
[1641290986294,8.85579644,167.53,167.51,0.02]
[1641290986493,8.54,167.53,167.51,0.02]
[1641290988295,8.54,167.53,167.48,2.773e-05]
[1641290988995,9.8995,167.53,167.48,2.773e-05]
[1641290989196,11.5520216,167.53,167.48,2.773e-05]
[1641290989497,23.00506722,167.53,167.48,2.773e-05]
[1641290989696,29.82427752,167.53,167.48,2.773e-05]
[1641290989897,1.6525216,167.51,167.48,2.773e-05]
[1641290990096,8.54,167.5,167.48,2.773e-05]
[1641290990897,10.1925216,167.5,167.48,2.773e-05]
[1641290991601,8.54,167.5,167.48,2.773e-05]
[1641290992402,8.8,167.5,167.48,2.773e-05]
[1641290993703,10.4525216,167.5,167.48,2.773e-05]
[1641290993903,10.9525216,167.5,167.48,2.773e-05]
[1641290994508,17.7717319,167.5,167.48,2.773e-05]
[1641290994707,1.6525216,167.49,167.48,2.773e-05]
[1641290994907,10.1925216,167.49,167.48,2.773e-05]
[1641290995106,10.4525216,167.49,167.48,2.773e-05]
[1641290995305,10.1925216,167.49,167.48,2.773e-05]
[1641290995506,10.4525216,167.49,167.48,2.773e-05]
[1641290995708,10.1925216,167.49,167.48,2.773e-05]
[1641290995907,10.4525216,167.49,167.48,2.773e-05]
[1641290996309,8.8,167.49,167.48,2.773e-05]
[1641290996508,8.54,167.49,167.48,2.773e-05]
[1641290996909,9.8048,167.49,167.48,2.773e-05]
[1641290997212,11.4573216,167.49,167.48,2.773e-05]
[1641290998012,11.7173216,167.49,167.48,2.773e-05]
[1641290999914,11.7173216,167.49,167.44,0.927553]
[1641290999915,136.41957752,167.49,167.42,0.14932957]
[1641291000116,22.6341,167.48,167.28,25.2525791]
[1641291000314,0.30039359,167.42,167.25,1.2928]
[1641291000515,8.54,167.41,167.25,1.2928]
[1641291000716,9.864,167.41,167.25,1.2928]
[1641291000918,31.26570252,167.4,167.26,32.85322368]
[1641291001217,8.54,167.39,167.27,23.5911]
[1641291001418,10.1925216,167.39,167.27,22.5911]
[1641291002118,8.54,167.39,167.27,22.5911]
[1641291002641,85.1563,167.39,167.27,22.5911]
[1641291003644,85.4163,167.39,167.27,22.5911]
[1641291004043,85.4163,167.39,167.27,22.8511]
[1641291004643,85.1563,167.39,167.27,22.8511]
[1641291005045,85.4163,167.39,167.27,22.8511]
[1641291005243,85.1563,167.39,167.27,22.8511]
[1641291005445,85.6563,167.39,167.27,22.8511]
[1641291005644,85.1563,167.39,167.27,22.8511]
[1641291006046,8.54,167.39,167.27,22.8511]
[1641291013252,104.67165873,167.43,167.27,31.3911]
[1641291013455,80.9258,167.43,167.27,56.0201]
[1641291014153,80.9258,167.43,167.28,1.2533]
[1641291014354,80.9258,167.43,167.29,2.35466448]
[1641291014554,80.9258,167.43,167.29,2.61466448]
[1641291015757,80.9258,167.43,167.3,22.7388]
[1641291015959,80.9258,167.43,167.31,19.41496523]
[1641291016358,80.9258,167.43,167.31,19.67496523]
[1641291016559,80.9258,167.43,167.32,2.17707462]
[1641291016962,80.9258,167.43,167.32,2.43707462]
[1641291018261,30.86753102,167.42,167.32,2.17707462]
[1641291018461,8.54,167.41,167.32,2.17707462]
[1641291022267,8.54,167.41,167.32,2.43707462]
[1641291023466,8.54,167.41,167.32,2.17707462]
[1641291024868,8.54,167.41,167.32,2.43707462]
[1641291025871,73.652,167.43,167.32,2.43707462]
[1641291028274,73.652,167.43,167.32,2.17707462]
[1641291029499,73.652,167.43,167.32,2.43707462]
[1641291030098,8.54,167.42,167.32,2.43707462]
[1641291035704,8.54,167.42,167.32,26.40927462]
[1641291038004,8.54,167.42,167.32,26.14927462]
[1641291040809,8.54,167.42,167.32,26.40927462]
[1641291041810,38.80569799,167.42,167.32,26.40927462]
[1641291043614,38.80569799,167.42,167.32,26.14927462]
[1641291045013,38.80569799,167.42,167.32,26.40927462]
[1641291046314,38.80569799,167.42,167.32,26.14927462]
[1641291046912,38.80569799,167.42,167.32,23.9722]
[1641291047512,38.80569799,167.42,167.32,24.2322]
[1641291047914,38.80569799,167.42,167.33,2.48544823]
[1641291048114,38.80569799,167.42,167.33,2.74544823]
[1641291051124,8.54,167.42,167.33,2.48544823]
[1641291052624,8.54,167.42,167.33,2.74544823]
[1641291055950,73.652,167.43,167.33,2.74544823]
[1641291056454,72.3858,167.43,167.33,2.74544823]
[1641291057250,72.3858,167.43,167.34,22.8431]
[1641291057652,72.3858,167.43,167.34,23.1031]
[1641291062358,99.05094277,167.43,167.34,23.1031]
[1641291062961,72.3858,167.43,167.34,23.1031]
[1641291063560,72.3858,167.43,167.35,2.95782539]
[1641291063967,72.3858,167.43,167.35,3.21782539]
[1641291065967,24.1775,167.46,167.35,3.21782539]
[1641291066164,1.6525216,167.47,167.36,23.1226]
[1641291066363,1.6525216,167.47,167.37,1.3332]
[1641291066569,1.6525216,167.47,167.38,2.15640207]
[1641291066762,1.6525216,167.47,167.38,26.30380207]
[1641291066964,1.6525216,167.47,167.39,27.81216897]
[1641291067365,1.6525216,167.47,167.4,23.8846]
[1641291067665,1.6525216,167.49,167.41,2.25922189]
[1641291067867,1.6525216,167.49,167.41,2.51922189]
[1641291068065,72.1954,167.51,167.41,2.51922189]
[1641291070470,72.1954,167.51,167.41,11.05922189]
[1641291070869,72.1954,167.51,167.42,24.7128]
[1641291071172,72.1954,167.51,167.42,24.9728]
[1641291071773,24.23992324,167.5,167.42,24.9728]
[1641291074674,24.23992324,167.5,167.42,24.7128]
[1641291075774,24.23992324,167.5,167.42,24.9728]
[1641291077977,72.1954,167.51,167.42,24.9728]
[1641291081506,72.1954,167.51,167.41,10.79922189]
[1641291081708,72.1954,167.51,167.41,2.25922189]
[1641291082909,72.1954,167.51,167.41,2.51922189]
[1641291086416,73.8479216,167.51,167.41,2.51922189]
[1641291087916,1.6525216,167.5,167.41,2.51922189]
[1641291088115,30.31957681,167.49,167.41,2.51922189]
[1641291093051,31.97209841,167.49,167.41,2.51922189]
[1641291098763,1.6525216,167.49,167.41,2.51922189]
[1641291099364,1.6525216,167.49,167.41,16.41022189]
[1641291099764,73.8479216,167.51,167.41,16.41022189]
[1641291099963,73.8479216,167.51,167.42,23.9748]
[1641291100362,73.8479216,167.51,167.42,24.2348]
[1641291101063,72.1954,167.51,167.42,24.2348]
[1641291101267,72.1954,167.51,167.42,25.5659]
[1641291105566,72.1954,167.51,167.44,2.7697524]
[1641291105967,72.1954,167.51,167.44,25.49150466]
[1641291107872,72.1954,167.51,167.44,25.23150466]
[1641291109070,72.1954,167.51,167.44,25.49150466]
[1641291109270,72.1954,167.51,167.44,0.26]
[1641291109473,72.1954,167.51,167.41,1.6038]
[1641291110272,72.1954,167.51,167.42,30.09000255]
[1641291110471,72.1954,167.51,167.42,33.32664011]
[1641291111875,104.83103868,167.51,167.42,33.32664011]
[1641291112273,104.83103868,167.51,167.42,3.23663756]
[1641291112474,106.48356028,167.51,167.42,3.23663756]
[1641291114479,1.6525216,167.5,167.42,3.23663756]
[1641291116081,106.48356028,167.51,167.42,0.26]
[1641291116483,106.48356028,167.51,167.4,23.46991244]
[1641291116683,23.0516,167.5,167.4,23.46991244]
[1641291116882,24.7041216,167.5,167.4,23.46991244]
[1641291117186,24.7041216,167.5,167.41,2.6100586]
[1641291117581,24.7041216,167.5,167.41,2.8700586]
[1641291117983,26.0566216,167.5,167.41,2.8700586]
[1641291118808,1.6525216,167.49,167.41,2.8700586]
[1641291120614,1.6525216,167.49,167.41,26.1245586]
[1641291122113,26.0566216,167.5,167.41,26.1245586]
[1641291123412,26.0566216,167.5,167.41,2.8700586]
[1641291124015,1.6525216,167.49,167.41,2.8700586]
[1641291125113,24.4041,167.5,167.41,2.8700586]
[1641291125915,24.4041,167.5,167.41,0.26]
[1641291126115,24.4041,167.5,167.39,24.5048]
[1641291127414,24.4041,167.5,167.4,2.14446981]
[1641291127815,24.4041,167.5,167.4,2.40446981]